bitfinex/quotes_BTCUSD_20250617
["timestamp","ask_amount","ask_price","bid_price","bid_amount"]
[1750161144918,0.02094181,105580.0,105570.0,0.59829957]
[1750161145141,0.03041303,105580.0,105570.0,0.36137741]
[1750161145370,0.01994181,105580.0,105570.0,0.59829957]
[1750161145844,0.01994181,105580.0,105570.0,0.59929957]
[1750161146066,0.01894181,105580.0,105570.0,0.59929957]
[1750161146498,0.01894181,105580.0,105570.0,0.60029957]
[1750161146722,0.00947077,105580.0,105570.0,0.60029957]
[1750161146947,0.01894172,105580.0,105570.0,0.60029957]
[1750161148135,0.00947077,105580.0,105570.0,0.60029957]
[1750161148368,0.54882572,105590.0,105580.0,0.24637216]
[1750161148610,0.02888372,105590.0,105580.0,0.74296703]
[1750161148841,0.02888372,105590.0,105580.0,0.75243789]
[1750161149071,0.02888372,105590.0,105580.0,0.51551573]
[1750161149310,0.02888372,105590.0,105580.0,0.75243789]
[1750161149547,0.02988372,105590.0,105580.0,0.75243789]
[1750161150321,0.03088372,105590.0,105580.0,0.74296685]
[1750161150548,0.01194308,105590.0,105580.0,0.75243789]
[1750161150757,0.02141322,105590.0,105580.0,0.75243789]
[1750161151174,0.02141313,105590.0,105580.0,0.75243789]
[1750161151406,0.02041313,105590.0,105580.0,0.75243789]
[1750161151623,0.02988345,105590.0,105580.0,0.51551573]
[1750161151848,0.02041313,105590.0,105580.0,0.75343789]
[1750161152074,0.02041304,105590.0,105580.0,0.75343789]
[1750161152290,0.02988336,105590.0,105580.0,0.75343789]
[1750161152522,0.02888336,105590.0,105580.0,0.75343789]
[1750161152747,0.03835377,105590.0,105580.0,0.51651573]
[1750161152967,0.23723614,105590.0,105580.0,0.49881573]
[1750161153197,0.22776681,105590.0,105580.0,0.47987401]
[1750161153421,0.02888435,105590.0,105580.0,0.33538487]
[1750161153672,0.02888435,105590.0,105580.0,0.48934487]
[1750161154413,0.20882572,105590.0,105580.0,0.48934487]
[1750161154703,0.45521838,105590.0,105580.0,0.48934487]
[1750161154938,0.21829622,105590.0,105580.0,0.48934487]
[1750161155145,0.45521838,105590.0,105580.0,0.48934487]
[1750161155585,0.25633601,105590.0,105580.0,0.48934487]
[1750161155809,0.44574788,105590.0,105580.0,0.48934496]
[1750161156034,0.44574788,105590.0,105580.0,0.46057401]
[1750161156526,0.20882572,105590.0,105580.0,0.479516]
[1750161156751,0.21829622,105590.0,105580.0,0.48898686]
[1750161157166,0.21829622,105590.0,105580.0,0.50838686]
[1750161158042,0.02888435,105590.0,105580.0,0.50838686]
[1750161158257,0.26580651,105590.0,105580.0,0.50838686]
[1750161158686,0.22776681,105590.0,105580.0,0.50838686]
[1750161158939,0.03835494,105590.0,105580.0,0.50838686]
[1750161159160,0.02888435,105590.0,105580.0,0.50838686]
[1750161159385,0.01941385,105590.0,105580.0,0.50838686]
[1750161160054,0.02888372,105590.0,105580.0,0.50838686]
[1750161160286,0.02888372,105590.0,105580.0,0.74530902]
[1750161160510,0.02888309,105590.0,105580.0,0.74530902]
[1750161160728,0.03835341,105590.0,105580.0,0.74530902]
[1750161160972,0.01941286,105590.0,105580.0,0.74530902]
[1750161161183,0.01941286,105590.0,105580.0,0.76340902]
[1750161161184,0.028883,105590.0,105580.0,0.76340902]
[1750161161844,0.028883,105590.0,105580.0,0.52648686]
[1750161162070,0.028883,105590.0,105580.0,0.76340902]
[1750161162071,0.03835332,105590.0,105580.0,0.76340902]
[1750161162298,0.03835341,105590.0,105580.0,0.74530902]
[1750161162519,0.03835332,105590.0,105580.0,0.74530902]
[1750161163029,0.04782373,105590.0,105580.0,0.74530902]
[1750161163698,0.23723632,105590.0,105580.0,0.74530902]
[1750161164191,0.23723632,105590.0,105580.0,0.73583816]
[1750161164192,0.23723695,105590.0,105580.0,0.73583816]
[1750161164655,0.22776681,105590.0,105580.0,0.48944505]
[1750161166888,0.21829649,105590.0,105580.0,0.47050288]
[1750161167094,0.21829649,105590.0,105580.0,0.4799741]
[1750161167566,0.21829649,105590.0,105580.0,0.48944523]
[1750161168456,0.21829649,105590.0,105580.0,0.47050288]
[1750161168732,0.20882608,105590.0,105580.0,0.47997428]
[1750161168948,0.20882608,105590.0,105580.0,0.47050297]
[1750161169248,0.20882608,105590.0,105580.0,0.47997428]
[1750161169481,0.44574824,105590.0,105580.0,0.4894455]
[1750161169720,0.20882608,105590.0,105580.0,0.72636766]
[1750161170449,0.20882608,105590.0,105580.0,0.73583879]
[1750161170679,0.20882572,105590.0,105580.0,0.74530983]
[1750161171147,0.21829559,105590.0,105580.0,0.50838767]
[1750161171383,0.21829559,105590.0,105580.0,0.72636766]
[1750161171619,0.22776618,105590.0,105580.0,0.73583879]
[1750161171862,0.22776618,105590.0,105580.0,0.72636766]
[1750161172108,0.22776618,105590.0,105580.0,0.71689644]
[1750161172318,0.22776618,105590.0,105580.0,0.72636766]
[1750161172743,0.22776618,105590.0,105580.0,0.70742513]
[1750161173175,0.21829622,105590.0,105580.0,0.51799541]
[1750161173605,0.21829622,105590.0,105580.0,0.50852392]
[1750161173817,0.21829622,105590.0,105580.0,0.51799541]
[1750161174036,0.21829622,105590.0,105580.0,0.71689662]
[1750161174703,0.21829622,105590.0,105580.0,0.70742522]
[1750161174918,0.21829622,105590.0,105580.0,0.50852392]
[1750161175128,0.21829622,105590.0,105580.0,0.51799541]
[1750161175343,0.20882563,105590.0,105580.0,0.72636793]
[1750161175581,0.21829622,105590.0,105580.0,0.72636793]
[1750161176007,0.21829622,105590.0,105580.0,0.70742522]
[1750161176219,0.21829622,105590.0,105580.0,0.71689662]
[1750161176431,0.21829622,105590.0,105580.0,0.50852392]
[1750161176881,0.21829622,105590.0,105580.0,0.70742522]
[1750161177096,0.21829622,105590.0,105580.0,0.50852392]
[1750161177747,0.21829622,105590.0,105580.0,0.71689662]
[1750161177959,0.21829622,105590.0,105580.0,0.70742513]
[1750161178199,0.21829622,105590.0,105580.0,0.70742522]
[1750161178628,0.21829622,105590.0,105580.0,0.71689662]
[1750161178838,0.21829622,105590.0,105580.0,0.47997446]
[1750161179059,0.21829622,105590.0,105580.0,0.27160176]
[1750161179274,0.21829622,105590.0,105580.0,0.70742513]
[1750161179489,0.21829622,105590.0,105580.0,0.70742522]
[1750161179701,0.20882563,105590.0,105580.0,0.49827446]
[1750161179913,0.21829613,105590.0,105580.0,0.73519662]
[1750161180137,0.21829649,105590.0,105580.0,0.52682392]
[1750161180347,0.21829649,105590.0,105580.0,0.50852392]
[1750161181028,0.21829649,105590.0,105580.0,0.27160176]
[1750161181666,0.21829649,105590.0,105580.0,0.28107325]
[1750161182174,0.21829649,105590.0,105580.0,0.27160176]
[1750161182370,0.21829649,105590.0,105580.0,0.48860306]
[1750161182592,0.21829649,105590.0,105580.0,0.73499662]
[1750161182808,0.21829649,105590.0,105580.0,0.52662392]
[1750161183025,0.21829649,105590.0,105580.0,0.50852392]
[1750161183457,0.21829649,105590.0,105580.0,0.27160176]
[1750161183662,0.21829649,105590.0,105580.0,0.28107325]
[1750161184298,0.21829649,105590.0,105580.0,0.27160176]
[1750161184951,0.45521865,105590.0,105580.0,0.27160176]
[1750161185222,0.21829649,105590.0,105580.0,0.47050297]
[1750161185456,0.21829649,105590.0,105580.0,0.47997428]
[1750161185683,0.21829649,105590.0,105580.0,0.69795373]
[1750161185885,0.21829649,105590.0,105580.0,0.47997446]
[1750161186108,0.21829649,105590.0,105580.0,0.50852392]
[1750161186523,0.21829649,105590.0,105580.0,0.27160176]
[1750161186752,0.21829649,105590.0,105580.0,0.52746681]
[1750161186962,0.21829649,105590.0,105580.0,0.71689662]
[1750161187173,0.21829649,105590.0,105580.0,0.72636793]
[1750161187388,0.21829649,105590.0,105580.0,0.71689662]
[1750161187602,0.21829649,105590.0,105580.0,0.70742522]
[1750161187812,0.21829649,105590.0,105580.0,0.71689662]
[1750161188361,0.21829649,105590.0,105580.0,0.51799541]
[1750161188583,0.20882608,105590.0,105580.0,0.50852392]
[1750161188800,0.20882608,105590.0,105580.0,0.27160176]
[1750161189014,0.19935558,105590.0,105580.0,0.50852392]
[1750161189227,0.19935558,105590.0,105580.0,0.28107325]
[1750161189434,0.19935558,105590.0,105580.0,0.47050306]
[1750161189662,0.43627774,105590.0,105580.0,0.47050306]
[1750161190081,0.43627774,105590.0,105580.0,0.70742522]
[1750161190304,0.2088259,105590.0,105580.0,0.47997446]
[1750161190513,0.2088259,105590.0,105580.0,0.72636793]
[1750161191161,0.2088259,105590.0,105580.0,0.73583906]
[1750161191408,0.20882536,105590.0,105580.0,0.73583915]
[1750161191610,0.02888318,105590.0,105580.0,0.75333861]
[1750161191814,0.03835359,105590.0,105580.0,0.75333861]
[1750161192021,0.0383535,105590.0,105580.0,0.76280947]
[1750161192267,0.0099429,105590.0,105580.0,0.76280947]
[1750161192493,0.02888309,105590.0,105580.0,0.76280947]
[1750161192700,0.02888309,105590.0,105580.0,0.52588731]
[1750161192911,0.02888309,105590.0,105580.0,0.76280947]
[1750161193340,0.0099429,105590.0,105580.0,0.99973163]
[1750161193571,0.02888282,105590.0,105580.0,0.99973163]
[1750161193775,0.00047312,105590.0,105580.0,0.99973163]
[1750161194863,0.00047312,105590.0,105580.0,0.76280947]
[1750161195724,0.00994308,105590.0,105580.0,0.76280947]
[1750161195933,0.00047312,105590.0,105580.0,0.76280947]
[1750161197025,0.0099429,105590.0,105580.0,0.76280947]
[1750161197486,0.01941286,105590.0,105580.0,0.76280947]
[1750161197698,0.00047312,105590.0,105580.0,0.76280947]
[1750161197909,0.00994299,105590.0,105580.0,0.76280947]
[1750161198803,0.00047312,105590.0,105580.0,0.76280947]
[1750161199019,0.0099429,105590.0,105580.0,0.76280947]
[1750161199246,0.01941277,105590.0,105580.0,0.76280947]
[1750161199461,0.02888291,105590.0,105580.0,0.76280947]
[1750161199886,0.02888282,105590.0,105580.0,0.76280947]
[1750161200526,0.03835305,105590.0,105580.0,0.76280947]
[1750161200958,0.23723623,105590.0,105580.0,0.32555654]
[1750161201166,0.49275839,105590.0,105580.0,0.48894749]
[1750161201372,0.47415839,105590.0,105580.0,0.48894749]
[1750161201583,0.23723623,105590.0,105580.0,0.48894749]
[1750161201798,0.47415839,105590.0,105580.0,0.48894749]
[1750161201996,0.46468852,105590.0,105580.0,0.48894749]
[1750161202219,0.44574824,105590.0,105580.0,0.10771325]
[1750161202500,0.48184824,105590.0,105580.0,0.09824176]
[1750161202983,0.48184824,105590.0,105580.0,0.25216176]
[1750161204062,0.48184824,105590.0,105580.0,0.09824176]
[1750161204273,0.48184824,105590.0,105580.0,0.25216176]
[1750161208775,1.0587704,105590.0,105580.0,0.002]
[1750161208958,1.01544824,105590.0,105580.0,0.002]
[1750161213931,1.01544824,105590.0,105580.0,0.001]
[1750161214205,0.22733566,105570.0,105560.0,0.64155386]
[1750161214419,0.22733566,105570.0,105560.0,0.73779562]
[1750161215379,0.21786408,105570.0,105560.0,0.31210735]
[1750161215602,0.21786408,105570.0,105560.0,0.26708879]
[1750161215822,0.21786408,105570.0,105560.0,0.46602759]
[1750161216038,0.21786408,105570.0,105560.0,0.48462768]
[1750161216251,0.21786408,105570.0,105560.0,0.49410078]
[1750161216689,0.21786408,105570.0,105560.0,0.50657379]
[1750161216901,0.21786408,105570.0,105560.0,0.73402294]
[1750161217082,0.21786408,105570.0,105560.0,0.74349586]
[1750161217533,0.2083917,105570.0,105560.0,0.77156797]
[1750161217963,0.21786399,105570.0,105560.0,0.76209541]
[1750161218169,0.2083917,105570.0,105560.0,0.77156806]
[1750161218384,0.21786399,105570.0,105560.0,0.77156815]
[1750161218597,0.19430958,105580.0,105560.0,0.76209451]
[1750161218811,0.2083917,105570.0,105560.0,0.74314912]
[1750161219057,0.2178639,105570.0,105560.0,0.75262186]
[1750161219274,0.22733619,105570.0,105560.0,0.74314912]
[1750161219667,0.02841553,105570.0,105560.0,0.98954393]
[1750161219892,0.21786328,105570.0,105560.0,0.74962177]
[1750161220105,0.21786328,105570.0,105560.0,0.75062177]
[1750161220344,0.21786328,105570.0,105560.0,0.74862177]
[1750161220785,0.21786328,105570.0,105560.0,0.75162177]
[1750161220992,0.02841553,105570.0,105560.0,0.75062177]
[1750161221446,0.02841553,105570.0,105560.0,0.75262186]
[1750161221447,0.22733557,105570.0,105560.0,0.75262186]
[1750161222382,0.23680795,105570.0,105560.0,0.75262231]
[1750161222563,0.22733557,105570.0,105560.0,0.76209505]
[1750161222769,0.22733557,105570.0,105560.0,0.74314948]
[1750161223003,0.22733557,105570.0,105560.0,0.72454948]
[1750161223229,0.22733557,105570.0,105560.0,0.74349505]
[1750161223433,0.22733557,105570.0,105560.0,0.50657289]
[1750161223638,0.22733557,105570.0,105560.0,0.74349505]
[1750161224059,0.21786328,105570.0,105560.0,0.74349505]
[1750161224251,0.22733557,105570.0,105560.0,0.74349505]
[1750161224495,0.22733557,105570.0,105560.0,0.73402231]
[1750161224671,0.22733557,105570.0,105560.0,0.74349505]
[1750161224882,0.22733557,105570.0,105560.0,0.73402231]
[1750161225325,0.22733557,105570.0,105560.0,0.72454957]
[1750161225851,0.22733557,105570.0,105560.0,0.7340224]
[1750161226341,0.23667649,105570.0,105560.0,0.72454957]
[1750161226543,0.23667649,105570.0,105560.0,0.73402249]
[1750161226753,0.23667649,105570.0,105560.0,0.72454957]
[1750161226945,0.22733557,105570.0,105560.0,0.73402249]
[1750161227139,0.22733557,105570.0,105560.0,0.74349532]
[1750161227378,0.22733557,105570.0,105560.0,0.73402249]
[1750161227589,0.22733557,105570.0,105560.0,0.74349532]
[1750161228017,0.21786328,105570.0,105560.0,0.50657316]
[1750161228238,0.21786328,105570.0,105560.0,0.75296806]
[1750161228450,0.21786328,105570.0,105560.0,0.5160459]
[1750161228661,0.21786328,105570.0,105560.0,0.75296806]
[1750161229091,0.20839117,105570.0,105560.0,0.75296752]
[1750161229300,0.21786319,105570.0,105560.0,0.77156752]
[1750161230151,0.22733539,105570.0,105560.0,0.7431493]
[1750161230361,0.22733539,105570.0,105560.0,0.75262213]
[1750161230585,0.22733539,105570.0,105560.0,0.7245493]
[1750161230810,0.22733539,105570.0,105560.0,0.73402213]
[1750161231025,0.22733539,105570.0,105560.0,0.7245493]
[1750161231241,0.23680777,105570.0,105560.0,0.7245493]
[1750161231453,0.23680777,105570.0,105560.0,0.71507665]
[1750161231679,0.22733619,105570.0,105560.0,0.73402276]
[1750161231892,0.22733619,105570.0,105560.0,0.72454975]
[1750161232118,0.2273361,105570.0,105560.0,0.7434955]
[1750161232328,0.2273361,105570.0,105560.0,0.73402267]
[1750161232546,0.2273361,105570.0,105560.0,0.73402276]
[1750161232767,0.2273361,105570.0,105560.0,0.74349568]
[1750161233211,0.2273361,105570.0,105560.0,0.73402276]
[1750161233677,0.2273361,105570.0,105560.0,0.50657352]
[1750161233886,0.2273361,105570.0,105560.0,0.73402276]
[1750161234103,0.23680848,105570.0,105560.0,0.73402276]
[1750161234785,0.21786381,105570.0,105560.0,0.75296851]
[1750161234997,0.2273361,105570.0,105560.0,0.7340224]
[1750161235417,0.2273361,105570.0,105560.0,0.74349523]
[1750161235631,0.2273361,105570.0,105560.0,0.7340224]
[1750161235870,0.2273361,105570.0,105560.0,0.72454948]
[1750161236750,0.2273361,105570.0,105560.0,0.7340224]
[1750161237392,0.2273361,105570.0,105560.0,0.74349523]
[1750161237599,0.20839161,105570.0,105560.0,0.75296788]
[1750161237815,0.21786381,105570.0,105560.0,0.75296797]
[1750161238252,0.21786381,105570.0,105560.0,0.74349523]
[1750161238671,0.2273361,105570.0,105560.0,0.7340224]
[1750161239096,0.2273361,105570.0,105560.0,0.57062948]
[1750161239334,0.2273361,105570.0,105560.0,0.7340224]
[1750161239538,0.21786381,105570.0,105560.0,0.74349523]
[1750161240659,0.2273361,105570.0,105560.0,0.7340224]
[1750161240894,0.2273361,105570.0,105560.0,0.74349523]
[1750161241110,0.2273361,105570.0,105560.0,0.7340224]
[1750161242580,0.2273361,105570.0,105560.0,0.72454948]
[1750161242791,0.2273361,105570.0,105560.0,0.7340224]
[1750161243003,0.2273361,105570.0,105560.0,0.48762732]
[1750161243217,0.2273361,105570.0,105560.0,0.7340224]
[1750161243907,0.2273361,105570.0,105560.0,0.45008121]
[1750161244115,0.2456361,105570.0,105560.0,0.4595544]
[1750161244329,0.23616426,105570.0,105560.0,0.4595544]
[1750161244542,0.23616426,105570.0,105560.0,0.45955449]
[1750161244757,0.23616426,105570.0,105560.0,0.46902768]
[1750161245175,0.23616426,105570.0,105560.0,0.47850078]
[1750161246762,0.21786426,105570.0,105560.0,0.4879737]
[1750161246986,0.20839152,105570.0,105560.0,0.49744644]
[1750161247210,0.21786363,105570.0,105560.0,0.51584644]
[1750161247416,0.21786363,105570.0,105560.0,0.7527686]
[1750161247629,0.21786363,105570.0,105560.0,0.74329532]
[1750161248068,0.22733592,105570.0,105560.0,0.74329541]
[1750161248479,0.21786363,105570.0,105560.0,0.74329541]
[1750161248912,0.22733592,105570.0,105560.0,0.74329541]
[1750161249119,0.21786363,105570.0,105560.0,0.75276815]
[1750161249330,0.22689277,105570.0,105560.0,0.73382258]
[1750161249549,0.48297116,105570.0,105560.0,0.10669551]
[1750161249772,0.48297116,105570.0,105560.0,0.01045375]
[1750161249983,0.52261116,105570.0,105560.0,0.01045375]
[1750161250399,0.67653116,105570.0,105560.0,0.01045375]
[1750161250634,0.67653116,105570.0,105560.0,0.00845375]
[1750161251056,0.67653116,105570.0,105560.0,0.00645375]
[1750161251956,0.67653116,105570.0,105560.0,0.00745375]
[1750161253237,0.439609,105570.0,105560.0,0.00745375]
[1750161253446,0.67653116,105570.0,105560.0,0.00745375]
[1750161254337,0.48297116,105570.0,105560.0,0.20639273]
[1750161254542,0.46417116,105570.0,105560.0,0.00745375]
[1750161255723,0.21786328,105570.0,105560.0,0.57600231]
[1750161255951,0.22733557,105570.0,105560.0,0.60237505]
[1750161256128,0.21786328,105570.0,105560.0,0.60237505]
[1750161256334,0.22733566,105570.0,105560.0,0.57600231]
[1750161256900,0.45478544,105570.0,105560.0,0.3485528]
[1750161257149,0.46425773,105570.0,105560.0,0.34855289]
[1750161257355,0.46425773,105570.0,105560.0,0.33908015]
[1750161257555,0.22733557,105570.0,105560.0,0.57600231]
[1750161257770,0.22733557,105570.0,105560.0,0.58547505]
[1750161257994,0.21786328,105570.0,105560.0,0.5949477]
[1750161258211,0.02841553,105570.0,105560.0,0.6119477]
[1750161258431,0.01894342,105570.0,105560.0,0.6119477]
[1750161258635,0.02841544,105570.0,105560.0,0.6119477]
[1750161258861,0.22733539,105570.0,105560.0,0.6119477]
[1750161260050,0.23680768,105570.0,105560.0,0.60247505]
[1750161260297,0.23680848,105570.0,105560.0,0.57600231]
[1750161260713,0.22733664,105570.0,105560.0,0.57600231]
[1750161261141,0.21786426,105570.0,105560.0,0.3485528]
[1750161261369,0.21786426,105570.0,105560.0,0.31066121]
[1750161261590,0.45478642,105570.0,105560.0,0.3296075]
[1750161261819,0.4453144,105570.0,105560.0,0.32013449]
[1750161262054,0.4453144,105570.0,105560.0,0.32960768]
[1750161262286,0.4453144,105570.0,105560.0,0.31210768]
[1750161262525,0.4453144,105570.0,105560.0,0.47550078]
[1750161262950,0.4453144,105570.0,105560.0,0.46602768]
[1750161263144,0.4358422,105570.0,105560.0,0.46602768]
[1750161264288,0.19892004,105570.0,105560.0,0.46602768]
[1750161264490,0.4358422,105570.0,105560.0,0.47550078]
[1750161265185,0.19892004,105570.0,105560.0,0.47550078]
[1750161265414,0.4358422,105570.0,105560.0,0.5029737]
[1750161265864,0.20839206,105570.0,105560.0,0.5029737]
[1750161266081,0.20839206,105570.0,105560.0,0.51244581]
[1750161266315,0.21786444,105570.0,105560.0,0.51244581]
[1750161266521,0.21786444,105570.0,105560.0,0.49350042]
[1750161266910,0.4547866,105570.0,105560.0,0.49350042]
[1750161267038,0.4547866,105570.0,105560.0,0.49350051]
[1750161267252,0.46760201,105580.0,105560.0,0.73989424]
[1750161267464,0.55357985,105580.0,105560.0,0.75769424]
[1750161267662,0.79050201,105580.0,105560.0,0.75769424]
[1750161268128,0.55357985,105580.0,105570.0,0.19892013]
[1750161268278,0.43267445,105580.0,105570.0,0.20839233]
[1750161268490,0.43367445,105580.0,105570.0,0.20839233]
[1750161268700,0.43467445,105580.0,105570.0,0.21786444]
[1750161269086,0.0398838,105580.0,105570.0,0.60507213]
[1750161269315,0.0378838,105580.0,105570.0,0.60507213]
[1750161269531,0.02941249,105580.0,105570.0,0.60507213]
[1750161269749,0.0398838,105580.0,105570.0,0.60507213]
[1750161270168,0.0388838,105580.0,105570.0,0.60507213]
[1750161270770,0.0378838,105580.0,105570.0,0.60507213]
[1750161270995,0.0378838,105580.0,105570.0,0.36914997]
[1750161271205,0.22731415,105580.0,105570.0,0.35967822]
[1750161271426,0.03788434,105580.0,105570.0,0.37014952]
[1750161272189,0.04735574,105580.0,105570.0,0.37014952]
[1750161272397,0.03788434,105580.0,105570.0,0.37014952]
[1750161273049,0.02841312,105580.0,105570.0,0.37014952]
[1750161274146,0.03788452,105580.0,105570.0,0.37014952]
[1750161274990,0.02841312,105580.0,105570.0,0.37014952]
[1750161275415,0.01894181,105580.0,105570.0,0.37014952]
[1750161275618,0.02841312,105580.0,105570.0,0.37014952]
[1750161276253,0.01894181,105580.0,105570.0,0.37014952]
[1750161276648,0.54882648,105590.0,105580.0,0.20837252]
[1750161276848,0.55829644,105590.0,105580.0,0.30461428]
[1750161277147,0.55829644,105590.0,105580.0,0.31408541]
[1750161277532,0.54882648,105590.0,105580.0,0.29514306]
[1750161277744,0.54882648,105590.0,105580.0,0.30461446]
[1750161278090,0.81415854,105590.0,105580.0,0.30461446]
[1750161278262,0.81515854,105590.0,105580.0,0.30461446]
[1750161278731,0.61624037,105590.0,105580.0,0.31408559]
[1750161278979,0.81512283,105590.0,105580.0,0.32355663]
[1750161279411,0.59834037,105590.0,105580.0,0.33302695]
[1750161279633,0.59834037,105590.0,105580.0,0.32355609]
[1750161279887,0.59833983,105590.0,105580.0,0.33302695]
[1750161280105,0.02141331,105590.0,105580.0,0.50482695]
[1750161280317,0.02141322,105590.0,105580.0,0.52292695]
[1750161280685,0.01194308,105590.0,105580.0,0.52292695]
[1750161280888,0.01194299,105590.0,105580.0,0.52292695]
[1750161281232,0.00247312,105590.0,105580.0,0.52292695]
[1750161282070,0.00147312,105590.0,105580.0,0.52292695]
[1750161282408,0.00147312,105590.0,105580.0,0.76085347]
[1750161282622,0.00147312,105590.0,105580.0,0.52392695]
[1750161283505,0.00047312,105590.0,105580.0,0.36992695]
[1750161283732,0.00047312,105590.0,105580.0,0.52500695]
[1750161283934,0.02588048,105600.0,105590.0,0.23452256]
[1750161284054,0.0353499,105600.0,105590.0,0.33076432]
[1750161284500,0.02588039,105600.0,105590.0,0.34926432]
[1750161284705,0.006942,105600.0,105590.0,0.34926432]
[1750161284959,0.02588039,105600.0,105590.0,0.34926432]
[1750161285151,0.01641106,105600.0,105590.0,0.34926432]
[1750161285285,0.44507374,105610.0,105600.0,0.23540219]
[1750161285286,0.02840505,105610.0,105600.0,0.23540219]
[1750161285493,0.22724985,105610.0,105600.0,0.34111301]
[1750161285710,0.22724985,105610.0,105600.0,0.3221748]
[1750161285922,0.22724985,105610.0,105600.0,0.33164404]
[1750161286431,0.44523994,105610.0,105600.0,0.3221748]
[1750161286880,0.43577132,105610.0,105600.0,0.29510538]
[1750161287062,0.44360252,105610.0,105600.0,0.30457498]
[1750161287278,0.44360252,105610.0,105600.0,0.31404449]
[1750161287525,0.44860252,105610.0,105600.0,0.31404449]
[1750161287717,0.44560252,105610.0,105600.0,0.47759391]
[1750161287896,0.45298383,105610.0,105600.0,0.47759391]
[1750161288092,0.45398383,105610.0,105600.0,0.48706324]
[1750161288301,0.43768383,105610.0,105600.0,0.48706324]
[1750161288508,0.21978168,105610.0,105600.0,0.4870627]
[1750161288715,0.22925048,105610.0,105600.0,0.4870627]
[1750161288946,0.22925048,105610.0,105600.0,0.36768279]
[1750161288947,0.002,105610.0,105600.0,0.36768279]
[1750161289173,0.002,105610.0,105600.0,0.52188225]
[1750161290135,0.001,105610.0,105600.0,0.52188225]
[1750161290336,0.002,105610.0,105600.0,0.52188225]
[1750161290538,0.01893481,105620.0,105610.0,0.23398132]
[1750161290745,0.85169438,105630.0,105620.0,0.20829324]
[1750161290943,0.85169438,105630.0,105620.0,0.19882579]
[1750161291275,0.85169438,105630.0,105620.0,0.20829342]
[1750161291482,0.83469438,105630.0,105620.0,0.20829342]
[1750161291688,0.80430446,105630.0,105620.0,0.22722841]
[1750161291903,0.56737794,105630.0,105620.0,0.21790331]
[1750161292109,0.038037,105630.0,105620.0,0.5050597]
[1750161292309,0.03039939,105630.0,105620.0,0.5050597]
[1750161292731,0.26732591,105630.0,105620.0,0.5050597]
[1750161293003,0.27032582,105630.0,105620.0,0.5050597]
[1750161293217,0.27032582,105630.0,105620.0,0.48612507]
[1750161293382,0.27979264,105630.0,105620.0,0.49559252]
[1750161293599,0.45966596,105630.0,105620.0,0.49559252]
[1750161293814,0.47859969,105630.0,105620.0,0.49559252]
[1750161293960,0.23967317,105630.0,105620.0,0.49559252]
[1750161294172,0.23967317,105630.0,105620.0,0.48612507]
[1750161294369,0.22820617,105630.0,105620.0,0.48612507]
[1750161294578,0.23867308,105630.0,105620.0,0.49559252]
[1750161294784,0.23867299,105630.0,105620.0,0.50505979]
[1750161294983,0.22920733,105630.0,105620.0,0.49559252]
[1750161295217,0.01146638,105630.0,105620.0,0.52171979]
[1750161295479,0.02093293,105630.0,105620.0,0.52171979]
[1750161296210,0.03039966,105630.0,105620.0,0.52171979]
[1750161296446,0.46613314,105630.0,105620.0,0.49555252]
[1750161296646,0.46613314,105630.0,105620.0,0.09638411]
[1750161296647,0.45666676,105630.0,105620.0,0.09638411]
[1750161296868,0.70886,105630.0,105620.0,0.00014235]
[1750161297478,0.8635,105630.0,105620.0,0.00014235]
[1750161297758,1.2035,105630.0,105620.0,0.00014235]
[1750161301995,1.24362,105630.0,105620.0,0.00014235]
[1750161303882,0.79453348,105630.0,105620.0,0.00014235]
[1750161304116,0.94921348,105630.0,105620.0,0.00014235]
[1750161304851,0.94921348,105630.0,105620.0,0.18950042]
[1750161305086,0.94921348,105630.0,105620.0,0.20843613]
[1750161305325,0.93241348,105630.0,105620.0,0.21790385]
[1750161306274,0.77773348,105630.0,105620.0,0.21790385]
[1750161306524,0.93237348,105630.0,105620.0,0.21790385]
[1750161306760,0.93237348,105630.0,105620.0,0.22737148]
[1750161307210,0.93237348,105630.0,105620.0,0.23683902]
[1750161307476,0.93237348,105630.0,105620.0,0.25433902]
[1750161307966,0.93237348,105630.0,105620.0,0.20843613]
[1750161308453,0.77773348,105630.0,105620.0,0.22737139]
[1750161308679,0.77773348,105630.0,105620.0,0.23460385]
[1750161309176,0.77773348,105630.0,105620.0,0.25353884]
[1750161309425,0.78720021,105630.0,105620.0,0.25353821]
[1750161309667,0.79666703,105630.0,105620.0,0.2535383]
[1750161309911,0.80613332,105630.0,105620.0,0.25353776]
[1750161310406,0.80613332,105630.0,105620.0,0.33084489]
[1750161310651,0.25785936,105630.0,105620.0,0.36667952]
[1750161310901,0.01146629,105630.0,105620.0,0.36667952]
[1750161311117,0.0114662,105630.0,105620.0,0.52123952]
[1750161311764,0.02093266,105630.0,105620.0,0.52123952]
[1750161311997,0.02093258,105630.0,105620.0,0.52123952]
[1750161312225,0.01146638,105630.0,105620.0,0.52123952]
[1750161313537,0.02093293,105630.0,105620.0,0.52123952]
[1750161313752,0.26732618,105630.0,105620.0,0.52123952]
[1750161313965,0.26732609,105630.0,105620.0,0.52123952]
[1750161314851,0.27679291,105630.0,105620.0,0.52123952]
[1750161315066,0.26732609,105630.0,105620.0,0.52123952]
[1750161315280,0.25785954,105630.0,105620.0,0.52123952]
[1750161315735,0.26732636,105630.0,105620.0,0.52123952]
[1750161315940,0.26732636,105630.0,105620.0,0.51177225]
[1750161316160,0.46613341,105630.0,105620.0,0.50230489]
[1750161316377,0.46613341,105630.0,105620.0,0.51177216]
[1750161316795,0.27679327,105630.0,105620.0,0.51177216]
[1750161317020,0.46613341,105630.0,105620.0,0.49487216]
[1750161317256,0.46613341,105630.0,105620.0,0.32137753]
[1750161317465,0.46613341,105630.0,105620.0,0.49413252]
[1750161317679,0.46613341,105630.0,105620.0,0.50359988]
[1750161319378,0.27679327,105630.0,105620.0,0.50359943]
[1750161319587,0.26732636,105630.0,105620.0,0.50359943]
[1750161319806,0.08654812,105630.0,105620.0,0.50359943]
[1750161320420,0.10548167,105630.0,105620.0,0.50359943]
[1750161320623,0.29482181,105630.0,105620.0,0.50359943]
[1750161320822,0.10548167,105630.0,105620.0,0.50359943]
[1750161321066,0.32435005,105640.0,105630.0,0.18934014]
[1750161321293,0.00946673,105630.0,105620.0,0.50359889]
[1750161321500,0.24639325,105630.0,105620.0,0.50359889]
[1750161322777,0.44519985,105630.0,105620.0,0.4941318]
[1750161322999,0.26532653,105630.0,105620.0,0.4941318]
[1750161323668,0.265326,105630.0,105620.0,0.4941318]
[1750161323884,0.27479273,105630.0,105620.0,0.4941318]
[1750161324073,0.28425955,105630.0,105620.0,0.4941318]
[1750161324248,0.03786621,105630.0,105620.0,0.4941318]
[1750161324458,0.27479282,105630.0,105620.0,0.4941318]
[1750161326384,0.02839948,105630.0,105620.0,0.4941318]
[1750161326584,0.25585936,105630.0,105620.0,0.4941318]
[1750161326835,0.265326,105630.0,105620.0,0.4941318]
[1750161328152,0.265326,105630.0,105620.0,0.5104318]
[1750161328374,0.01893284,105630.0,105620.0,0.5104318]
[1750161328584,0.00946629,105630.0,105620.0,0.50096426]
[1750161328803,0.02839948,105630.0,105620.0,0.50186426]
[1750161329018,0.01893275,105630.0,105620.0,0.50186426]